fUST/lending_fUST_20251123
["ID","MTS","AMOUNT","RATE_DAILY","PERIOD"]
[394715949,1763913040643,-333.0,0.00013079,2]
[394715950,1763913040653,-333.0,0.00013079,2]
[394715951,1763913040662,-333.0,0.00013079,2]
[394715952,1763913040672,-337.78359589,0.00013079,2]
[394715953,1763913040682,-333.0,0.00013079,2]
[394715954,1763913040692,-333.0,0.00013079,2]
[394715955,1763913040702,-333.0,0.00013079,2]
[394715956,1763913040713,-333.0,0.00013079,2]
[394715957,1763913040723,-333.0,0.00013079,2]
[394715958,1763913040732,-333.0,0.00013079,2]
[394715959,1763913040742,-333.0,0.00013079,2]
[394715960,1763913040752,-333.0,0.00013079,2]
[394715961,1763913040762,-333.0,0.00013079,2]
[394715962,1763913040772,-333.0,0.00013079,2]
[394715963,1763913040782,-333.0,0.00013079,2]
[394715964,1763913040791,-333.0,0.00013079,2]
[394715965,1763913040801,-333.0,0.00013079,2]
[394715966,1763913040810,-333.0,0.00013079,2]
[394715967,1763913040819,-175.43176533,0.00013079,2]
[394715968,1763913040828,-174.0,0.00013079,2]
[394715969,1763913040838,-174.0,0.00013079,2]
[394715970,1763913040848,-172.0,0.00013079,2]
[394715971,1763913040858,-166.0,0.00013079,2]
[394715972,1763913040867,-166.0,0.00013079,2]
[394715974,1763913040876,-166.0,0.00013079,2]
[394715977,1763913040886,-166.0,0.00013079,2]
[394715979,1763913040895,-166.0,0.00013079,2]
[394715981,1763913040903,-152.0,0.00013079,2]
[394715983,1763913040913,-152.0,0.00013079,2]
[394715985,1763913040925,-152.0,0.00013079,2]
[394715987,1763913040934,-152.0,0.00013079,2]
[394715988,1763913040943,-152.0,0.00013079,2]
[394715991,1763913040954,-152.0,0.00013079,2]
[394715992,1763913040963,-152.0,0.00013079,2]
[394715995,1763913040973,-152.0,0.00013079,2]
[394715996,1763913040983,-274.41509152,0.00013079,2]
[394715998,1763913040992,-152.0,0.00013079,2]
[394716000,1763913041005,-152.0,0.00013079,2]
[394716003,1763913041015,-152.0,0.00013079,2]
[394716004,1763913041024,-152.0,0.00013079,2]
[394716007,1763913041034,-152.0,0.00013079,2]
[394716009,1763913041044,-152.0,0.00013079,2]
[394716010,1763913041053,-152.0,0.00013079,2]
[394716012,1763913041062,-152.0,0.00013079,2]
[394716014,1763913041072,-152.0,0.00013079,2]
[394716016,1763913041081,-152.0,0.00013079,2]
[394716018,1763913041090,-152.0,0.00013079,2]
[394716020,1763913041100,-152.0,0.00013079,2]
[394716022,1763913041109,-152.0,0.00013079,2]
[394716024,1763913041119,-152.0,0.00013079,2]
[394716026,1763913041130,-152.0,0.00013116,2]
[394716028,1763913041139,-152.0,0.00013116,2]
[394716030,1763913041148,-152.0,0.00013116,2]
[394716032,1763913041158,-152.0,0.00013116,2]
[394716034,1763913041167,-152.0,0.00013116,2]
[394716036,1763913041177,-1000.0,0.00013133,2]
[394716038,1763913041187,-244.0,0.00013133,2]
[394716041,1763913041206,-787.0,0.0001315,2]
[394716043,1763913041219,-158.88669423,0.00013174,2]
[394716045,1763913041229,-4522.48465449,0.00013253,2]
[394716047,1763913041239,-233.51889341,0.00013288,2]
[394716050,1763913041250,-157.0,0.000136,2]
[394716052,1763913041260,-160.0,0.000136,2]
[394716054,1763913041270,-160.0,0.000136,2]
[394716056,1763913041280,-326.03678583,0.00013618,2]
[394716058,1763913041289,-553.55,0.00013698,2]
[394716060,1763913041299,-553.55,0.00013698,2]
[394716062,1763913041309,-553.55,0.00013698,2]
[394716064,1763913041318,-553.55,0.00013698,2]
[394716066,1763913041328,-553.55,0.00013698,2]
[394716068,1763913041338,-553.55,0.00013698,2]
[394716070,1763913041348,-553.55,0.00013698,2]
[394716072,1763913041357,-553.55,0.00013698,2]
[394716074,1763913041367,-553.55,0.00013698,2]
[394716076,1763913041377,-553.55,0.00013698,2]
[394716078,1763913041386,-553.55,0.00013698,2]
[394716080,1763913041396,-553.55,0.00013698,2]
[394716082,1763913041405,-553.55,0.00013698,2]
[394716084,1763913041415,-553.55,0.00013698,2]
[394716086,1763913041425,-553.55,0.00013698,2]
[394716088,1763913041435,-553.55,0.00013698,2]
[394716090,1763913041445,-553.55,0.00013698,2]
[394716092,1763913041456,-553.55,0.00013698,2]
[394716094,1763913041469,-553.55,0.00013698,2]
[394716096,1763913041478,-553.55,0.00013698,2]
[394716098,1763913041488,-553.55,0.00013698,2]
[394716100,1763913041497,-553.55,0.00013698,2]
[394716102,1763913041507,-553.55,0.00013698,2]
[394716104,1763913041518,-553.66476514,0.00013698,2]
[394716106,1763913041527,-500.0,0.00013698,2]
[394716108,1763913041536,-500.0,0.00013698,2]
[394716110,1763913041546,-500.0,0.00013698,2]
[394716112,1763913041556,-500.0,0.00013698,2]
[394716114,1763913041568,-403.50249142,0.00013698,2]
[394716116,1763913041577,-500.0,0.00013698,2]
[394716118,1763913041586,-500.0,0.00013698,2]
[394716120,1763913041596,-500.0,0.00013698,2]
[394716122,1763913041605,-500.0,0.00013698,2]
[394716124,1763913041615,-500.0,0.00013698,2]
[394716126,1763913041625,-500.0,0.00013698,2]
[394716128,1763913041634,-500.0,0.00013698,2]
[394716130,1763913041644,-303.35004627,0.00013698,2]
[394716132,1763913041654,-515.83,0.00013698,2]
[394716134,1763913041663,-515.83,0.00013698,2]
[394716136,1763913041673,-515.83,0.00013698,2]
[394716138,1763913041683,-515.83,0.00013698,2]
[394716141,1763913041693,-515.83,0.00013698,2]
[394716143,1763913041702,-515.83,0.00013698,2]
[394716145,1763913041712,-515.83,0.00013698,2]
[394716147,1763913041722,-515.83,0.00013698,2]
[394716149,1763913041733,-515.83,0.00013698,2]
[394716167,1763913041893,-515.83,0.00013698,2]
[394716169,1763913041903,-515.83,0.00013698,2]
[394716171,1763913041913,-515.83,0.00013698,2]
[394716173,1763913041922,-515.83,0.00013698,2]
[394716175,1763913041937,-515.83,0.00013698,2]
[394716177,1763913041947,-515.83,0.00013698,2]
[394716179,1763913041956,-515.83,0.00013698,2]
[394716181,1763913041966,-515.83,0.00013698,2]
[394716183,1763913041978,-515.83,0.00013698,2]
[394716185,1763913041988,-515.83,0.00013698,2]
[394716187,1763913041997,-515.83,0.00013698,2]
[394716189,1763913042006,-515.83,0.00013698,2]
[394716191,1763913042017,-515.83,0.00013698,2]
[394716193,1763913042027,-515.83,0.00013698,2]
[394716194,1763913042037,-516.031924,0.00013698,2]
[394716196,1763913042047,-501.17002184,0.00013698,2]
[394716199,1763913042056,-893.35,0.00013698,2]
[394716201,1763913042066,-893.35,0.00013698,2]
[394716203,1763913042076,-893.35,0.00013698,2]
[394716205,1763913042087,-893.35,0.00013698,2]
[394716207,1763913042096,-893.35,0.00013698,2]
[394716208,1763913042106,-893.35,0.00013698,2]
[394716210,1763913042115,-893.35,0.00013698,2]
[394716212,1763913042125,-893.35,0.00013698,2]
[394716214,1763913042135,-893.35,0.00013698,2]
[394716216,1763913042144,-893.35,0.00013698,2]
[394716218,1763913042154,-893.35,0.00013698,2]
[394716220,1763913042164,-893.35,0.00013698,2]
[394716222,1763913042174,-893.35,0.00013698,2]
[394716224,1763913042184,-893.35,0.00013698,2]
[394716226,1763913042194,-893.35,0.00013698,2]
[394716228,1763913042203,-893.35,0.00013698,2]
[394716231,1763913042217,-893.35,0.00013698,2]
[394716233,1763913042226,-893.35,0.00013698,2]
[394716235,1763913042236,-893.35,0.00013698,2]
[394716237,1763913042247,-893.35,0.00013698,2]
[394716239,1763913042256,-893.35,0.00013698,2]
[394716241,1763913042266,-893.35,0.00013698,2]
[394716243,1763913042276,-893.35,0.00013698,2]
[394716245,1763913042286,-893.51183776,0.00013698,2]
[394716247,1763913042295,-1000.0,0.00013698,2]
[394716249,1763913042306,-1000.0,0.00013698,2]
[394716251,1763913042315,-1000.0,0.00013698,2]
[394716253,1763913042325,-1000.0,0.00013698,2]
[394716255,1763913042335,-1000.0,0.00013698,2]
[394716257,1763913042345,-1000.0,0.00013698,2]
[394716259,1763913042355,-1000.0,0.00013698,2]
[394716261,1763913042364,-1000.0,0.00013698,2]
[394716263,1763913042375,-1000.0,0.00013698,2]
[394716265,1763913042385,-1000.0,0.00013698,2]
[394716267,1763913042395,-1000.0,0.00013698,2]
[394716269,1763913042405,-1000.0,0.00013698,2]
[394716271,1763913042414,-1000.0,0.00013698,2]
[394716273,1763913042423,-451.05295102,0.00013698,2]
[394716275,1763913042434,-645.2,0.00013698,2]
[394716277,1763913042443,-645.2,0.00013698,2]
[394716279,1763913042452,-645.2,0.00013698,2]
[394716281,1763913042463,-645.2,0.00013698,2]
[394716283,1763913042472,-645.2,0.00013698,2]
[394716285,1763913042482,-645.2,0.00013698,2]
[394716287,1763913042492,-645.2,0.00013698,2]
[394716289,1763913042502,-645.2,0.00013698,2]
[394716292,1763913042512,-645.2,0.00013698,2]
[394716293,1763913042522,-645.2,0.00013698,2]
[394716295,1763913042532,-645.2,0.00013698,2]
[394716297,1763913042542,-645.2,0.00013698,2]
[394716300,1763913042551,-645.2,0.00013698,2]
[394716302,1763913042561,-645.2,0.00013698,2]
[394716303,1763913042570,-645.2,0.00013698,2]
[394716305,1763913042580,-645.2,0.00013698,2]
[394716307,1763913042590,-645.2,0.00013698,2]
[394716309,1763913042599,-645.2,0.00013698,2]
[394716312,1763913042610,-645.2,0.00013698,2]
[394716314,1763913042622,-645.2,0.00013698,2]
[394716315,1763913042631,-645.2,0.00013698,2]
[394716318,1763913042641,-645.2,0.00013698,2]
[394716320,1763913042651,-645.2,0.00013698,2]
[394716322,1763913042661,-645.20223511,0.00013698,2]
[394716324,1763913042670,-500.0,0.00013698,2]
[394716326,1763913042679,-500.0,0.00013698,2]
[394716328,1763913042688,-198.68243717,0.00013698,2]
[394716330,1763913042698,-1000.0,0.00013699,2]
[394716332,1763913042707,-271.6441939,0.00013699,2]
[394716334,1763913042717,-2386.152147,0.00013699,2]
[394716336,1763913042726,-151.0,0.00013699,2]
[394716338,1763913042735,-151.0,0.00013699,2]
[394716340,1763913042744,-151.0,0.00013699,2]
[394716342,1763913042754,-151.0,0.00013699,2]
[394716343,1763913042763,-151.0,0.00013699,2]
[394716346,1763913042773,-151.0,0.00013699,2]
[394716348,1763913042782,-185.351647,0.00013699,2]
[394716350,1763913042792,-151.000139,0.00013699,2]
[394716352,1763913042802,-1489.116457,0.00013699,2]
[394716354,1763913042812,-151.0,0.00013699,2]
[394716355,1763913042822,-151.0,0.00013699,2]
[394716357,1763913042831,-151.0,0.00013699,2]
[394716360,1763913042841,-151.0,0.00013699,2]
[394716362,1763913042851,-151.0,0.00013699,2]
[394716364,1763913042860,-151.0,0.00013699,2]
[394716365,1763913042870,-151.0,0.00013699,2]
[394716368,1763913042880,-151.0,0.00013699,2]
[394716369,1763913042889,-151.0,0.00013699,2]
[394716372,1763913042899,-151.0,0.00013699,2]
[394716373,1763913042909,-271.51452,0.00013699,2]
[394716376,1763913042920,-1047.482476,0.00013699,2]
[394716378,1763913042932,-1047.482476,0.00013699,2]
[394716379,1763913042943,-1047.482476,0.00013699,2]
[394716382,1763913042953,-1047.482476,0.00013699,2]
[394716384,1763913042963,-1047.482476,0.00013699,2]
[394716386,1763913042974,-1047.482476,0.00013699,2]
[394716388,1763913042984,-1047.482476,0.00013699,2]
[394716389,1763913042993,-1047.482476,0.00013699,2]
[394716392,1763913043004,-1047.482476,0.00013699,2]
[394716396,1763913043014,-1047.482476,0.00013699,2]
[394716398,1763913043024,-1047.482476,0.00013699,2]
[394716402,1763913043035,-1047.482476,0.00013699,2]
[394716405,1763913043045,-1047.482476,0.00013699,2]
[394716408,1763913043055,-1047.482476,0.00013699,2]
[394716410,1763913043066,-1047.482476,0.00013699,2]
[394716413,1763913043077,-1047.482476,0.00013699,2]
[394716415,1763913043087,-1047.482476,0.00013699,2]
[394716416,1763913043097,-1047.482476,0.00013699,2]
[394716418,1763913043107,-1047.482476,0.00013699,2]
[394716420,1763913043116,-1047.482483,0.00013699,2]
[394716422,1763913043126,-395.73,0.00013699,2]
[394716424,1763913043135,-500.0,0.00013699,2]
[394716426,1763913043145,-159.02275353,0.00013699,2]
[394716428,1763913043157,-500.0,0.00013699,2]
[394716430,1763913043167,-500.0,0.00013699,2]
[394716432,1763913043177,-370.61273576,0.00013699,2]
[394716434,1763913043186,-500.0,0.00013699,2]
[394716436,1763913043195,-500.0,0.00013699,2]
[394716438,1763913043205,-500.0,0.00013699,2]
[394716440,1763913043215,-159.51176461,0.00013699,2]
[394716442,1763913043225,-500.0,0.00013699,2]
[394716445,1763913043235,-500.0,0.00013699,2]
[394716446,1763913043245,-408.73665108,0.00013699,2]
[394716448,1763913043255,-500.0,0.00013699,2]
[394716451,1763913043265,-500.0,0.00013699,2]
[394716453,1763913043275,-292.40806338,0.00013699,2]
[394716455,1763913043284,-504.44742998,0.00013699,2]
[394716457,1763913043294,-500.0,0.00013699,2]
[394716459,1763913043304,-500.0,0.00013699,2]
[394716461,1763913043313,-500.0,0.00013699,2]
[394716462,1763913043323,-500.0,0.00013699,2]
[394716463,1763913043332,-500.0,0.00013699,2]
[394716464,1763913043342,-500.0,0.00013699,2]
[394716465,1763913043352,-500.0,0.00013699,2]
[394716466,1763913043361,-240.31798366,0.00013699,2]
[394716467,1763913043371,-500.0,0.00013699,2]
[394716468,1763913043381,-500.0,0.00013699,2]
[394716470,1763913043390,-284.16369637,0.00013699,2]
[394716472,1763913043400,-500.0,0.00013699,2]
[394716474,1763913043410,-500.0,0.00013699,2]
[394716476,1763913043419,-500.0,0.00013699,2]
[394716478,1763913043429,-500.0,0.00013699,2]
[394716480,1763913043438,-500.0,0.00013699,2]
[394716482,1763913043448,-500.0,0.00013699,2]
[394716484,1763913043457,-502.35196855,0.00013699,2]
[394716486,1763913043467,-279.5,0.00013699,2]
[394716488,1763913043477,-500.0,0.00013699,2]
[394716490,1763913043488,-500.0,0.00013699,2]
[394716492,1763913043498,-500.0,0.00013699,2]
[394716494,1763913043508,-500.0,0.00013699,2]
[394716497,1763913043518,-500.0,0.00013699,2]
[394716499,1763913043528,-500.0,0.00013699,2]
[394716501,1763913043538,-302.67794302,0.00013699,2]
[394716503,1763913043547,-500.0,0.00013699,2]
[394716505,1763913043556,-500.0,0.00013699,2]
[394716507,1763913043566,-500.0,0.00013699,2]
[394716509,1763913043576,-500.0,0.00013699,2]
[394716511,1763913043585,-2000.0,0.00013699,7]
[394716513,1763913043594,-500.0,0.00013699,2]
[394716515,1763913043605,-500.0,0.00013699,2]
[394716517,1763913043614,-500.0,0.00013699,2]
[394716519,1763913043623,-500.0,0.00013699,2]
[394716534,1763913043753,-502.21879446,0.00013699,2]
[394716536,1763913043766,-500.0,0.00013699,2]
[394716538,1763913043776,-358.53212142,0.00013699,2]
[394716540,1763913043786,-500.0,0.00013699,2]
[394716542,1763913043795,-500.0,0.00013699,2]
[394716544,1763913043805,-500.0,0.00013699,2]
[394716546,1763913043814,-500.0,0.00013699,2]
[394716548,1763913043823,-500.0,0.00013699,2]
[394716550,1763913043832,-501.25784649,0.00013699,2]
[394716552,1763913043842,-500.0,0.00013699,2]
[394716554,1763913043851,-500.0,0.00013699,2]
[394716556,1763913043860,-500.0,0.00013699,2]
[394716558,1763913043869,-500.0,0.00013699,2]
[394716560,1763913043879,-500.0,0.00013699,2]
[394716562,1763913043888,-400.0,0.00013699,2]
[394716564,1763913043897,-519.9861794,0.00013699,2]
[394716566,1763913043907,-160.11746676,0.00013699,2]
[394716568,1763913043916,-500.0,0.00013699,2]
[394716569,1763913043926,-500.0,0.00013699,2]
[394716571,1763913043938,-500.0,0.00013699,2]
[394716573,1763913043947,-516.60392382,0.00013699,2]
[394716575,1763913043957,-500.0,0.00013699,2]
[394716578,1763913043968,-500.0,0.00013699,2]
[394716580,1763913043978,-500.0,0.00013699,2]
[394716581,1763913043988,-572.25240913,0.00013699,2]
[394716584,1763913043998,-158.20708165,0.00013699,2]
[394716585,1763913044009,-250.00843658,0.00013699,2]
[394716587,1763913044018,-500.0,0.00013699,2]
[394716589,1763913044028,-500.0,0.00013699,2]
[394716591,1763913044037,-500.0,0.00013699,2]
[394716593,1763913044047,-500.0,0.00013699,2]
[394716595,1763913044057,-500.0,0.00013699,2]
[394716597,1763913044068,-500.0,0.00013699,2]
[394716599,1763913044078,-500.0,0.00013699,2]
[394716601,1763913044087,-500.0,0.00013699,2]
[394716604,1763913044097,-500.0,0.00013699,2]
[394716605,1763913044107,-500.0,0.00013699,2]
[394716607,1763913044117,-532.57009137,0.00013699,2]
[394716610,1763913044128,-500.0,0.00013699,2]
[394716612,1763913044138,-223.59392358,0.00013699,2]
[394716614,1763913044148,-160.0,0.00013699,2]
[394716616,1763913044159,-1000.0,0.000138,2]
[394716618,1763913044169,-242.15909246,0.00013836,2]
[394716620,1763913044185,-2000.0,0.000139,2]
[394716622,1763913044195,-500.0,0.00013973,2]
[394716624,1763913044206,-476.5,0.00014019,2]
[394716626,1763913044217,-180.18,0.00014185,2]
[394716628,1763913044228,-201.50355034,0.00014246,2]
[394716631,1763913044239,-308.27153423,0.00014246,2]
[394716633,1763913044249,-200.0,0.00014246,2]
[394716635,1763913044260,-787.0,0.00014246,2]
[394716637,1763913044270,-500.0,0.00014247,2]
[394716639,1763913044280,-1000.0,0.00014247,2]
[394716641,1763913044290,-721.6272633,0.00014247,2]
[394716643,1763913044301,-1000.0,0.00014247,2]
[394716646,1763913044315,-1000.0,0.00014247,2]
[394716648,1763913044326,-1000.0,0.00014247,2]
[394716651,1763913044336,-1000.0,0.00014247,2]
[394716653,1763913044345,-1017.80600446,0.00014247,2]
[394716655,1763913044355,-509.89371907,0.00014247,2]
[394716657,1763913044365,-1000.0,0.00014247,2]
[394716659,1763913044375,-1067.48324452,0.00014247,2]
[394716661,1763913044385,-1000.0,0.00014247,2]
[394716663,1763913044395,-1000.0,0.00014247,2]
[394716667,1763913044405,-1000.0,0.00014247,2]
[394716670,1763913044415,-1000.0,0.00014247,2]
[394716672,1763913044425,-1000.0,0.00014247,2]
[394716674,1763913044434,-1000.0,0.00014247,2]
[394716676,1763913044443,-1000.0,0.00014247,2]
[394716678,1763913044453,-487.29316008,0.00014247,2]
[394716680,1763913044462,-1000.0,0.00014247,2]
[394716682,1763913044473,-1000.0,0.00014247,2]
[394716684,1763913044482,-1000.0,0.00014247,2]
[394716686,1763913044492,-1000.0,0.00014247,2]
[394716688,1763913044501,-746.50642401,0.00014247,2]
[394716690,1763913044510,-303.83059478,0.00014247,2]
[394716692,1763913044520,-820.62541311,0.00014247,2]
[394716694,1763913044530,-514.00193536,0.00014247,2]
[394716696,1763913044539,-1000.0,0.00014247,2]
[394716698,1763913044548,-1000.0,0.00014247,2]
[394716699,1763913044557,-1000.0,0.00014247,2]
[394716702,1763913044567,-1000.0,0.00014247,2]
[394716703,1763913044577,-170.20416567,0.00014247,2]
[394716706,1763913044587,-1000.0,0.00014247,2]
[394716708,1763913044597,-1000.0,0.00014247,2]
[394716710,1763913044607,-1000.0,0.00014247,2]
[394716712,1763913044616,-1006.5310384,0.00014247,2]
[394716714,1763913044625,-842.20095389,0.00014247,2]
[394716716,1763913044635,-683.89492719,0.00014247,2]
[394716718,1763913044645,-591.53967143,0.00014247,2]
[394716720,1763913044655,-664.49737352,0.00014247,2]
[394716722,1763913044665,-1002.55295349,0.00014247,2]
[394716724,1763913044674,-933.71657836,0.00014247,2]
[394716726,1763913044683,-934.13774123,0.00014247,2]
[394716731,1763913044723,-300.0,7.663e-05,2]
[394716733,1763913044733,-65.86225877,0.00014247,2]
[394716735,1763913044744,-1000.0,0.00014247,2]
[394716737,1763913044754,-934.38260062,0.00014247,2]
[394716739,1763913044764,-1000.0,0.00014247,2]
[394716741,1763913044774,-1000.0,0.00014247,2]
[394716743,1763913044784,-1000.0,0.00014247,2]
[394716745,1763913044794,-1000.0,0.00014247,2]
[394716747,1763913044804,-524.10960292,0.00014247,2]
[394716749,1763913044813,-1000.0,0.00014247,2]
[394716751,1763913044822,-1000.0,0.00014247,2]
[394716753,1763913044832,-1000.0,0.00014247,2]
[394716755,1763913044842,-1000.0,0.00014247,2]
[394716757,1763913044851,-1000.0,0.00014247,2]
[394716759,1763913044860,-1000.0,0.00014247,2]
[394716761,1763913044869,-1000.0,0.00014247,2]
[394716763,1763913044879,-1000.0,0.00014247,2]
[394716764,1763913044888,-1000.0,0.00014247,2]
[394716766,1763913044898,-1000.0,0.00014247,2]
[394716769,1763913044907,-503.44546234,0.00014247,2]
[394716771,1763913044917,-837.17110315,0.00014247,2]
[394716773,1763913044930,-1000.0,0.00014247,2]
[394716775,1763913044939,-1004.52867413,0.00014247,2]
[394716777,1763913044949,-1000.0,0.00014247,2]
[394716779,1763913044960,-1000.0,0.00014247,2]
[394716781,1763913044971,-1000.0,0.00014247,2]
[394716783,1763913044982,-1000.0,0.00014247,2]
[394716785,1763913044991,-260.0,0.00014247,2]
[394716787,1763913045001,-251.11897888,0.00014384,2]
[394716789,1763913045012,-1000.0,0.00014446,2]
[394716791,1763913045022,-492.0,0.00014446,2]
[394716793,1763913045031,-45912.1775654,0.00014521,2]
[394716795,1763913045040,-500.0,0.00014521,2]
[394716797,1763913045049,-500.0,0.00014795,2]
[394716799,1763913045059,-1500.0,0.00014795,2]
[394716801,1763913045068,-1102.29229336,0.00014795,2]
[394716803,1763913045078,-1510.03555128,0.00014795,2]
[394716805,1763913045087,-237.66371421,0.00014795,2]
[394716807,1763913045096,-358.11719408,0.00014795,2]
[394716809,1763913045105,-1003.19472965,0.00014795,2]
[394716811,1763913045114,-504.20930694,0.00014795,2]
[394716813,1763913045123,-1500.0,0.00014795,2]
[394716815,1763913045133,-872.97005497,0.00014795,2]
[394716816,1763913045143,-1602.9699764,0.00014795,2]
[394716819,1763913045153,-1500.0,0.00014795,2]
[394716820,1763913045162,-1500.0,0.00014795,2]
[394716823,1763913045172,-1500.0,0.00014795,2]
[394716825,1763913045181,-1500.0,0.00014795,2]
[394716827,1763913045191,-1500.0,0.00014795,2]
[394716829,1763913045200,-512.58556956,0.00014795,2]
[394716831,1763913045210,-196.53779856,0.00014795,2]
[394716832,1763913045220,-949.11730587,0.00014795,2]
[394716835,1763913045230,-1500.0,0.00014795,2]
[394716837,1763913045241,-1006.18570974,0.00014795,2]
[394716839,1763913045250,-1500.0,0.00014795,2]
[394716841,1763913045260,-1500.0,0.00014795,2]
[394716843,1763913045269,-1500.0,0.00014795,2]
[394716844,1763913045279,-1500.0,0.00014795,2]
[394716846,1763913045288,-1500.0,0.00014795,2]
[394716849,1763913045299,-1500.0,0.00014795,2]
[394716850,1763913045308,-1500.0,0.00014795,2]
[394716852,1763913045318,-1500.0,0.00014795,2]
[394716855,1763913045328,-1500.0,0.00014795,2]
[394716856,1763913045338,-1500.0,0.00014795,2]
[394716870,1763913045449,-270.36112703,0.00014795,2]
[394716873,1763913045468,-1500.0,0.00014795,2]
[394716875,1763913045477,-1500.0,0.00014795,2]
[394716877,1763913045486,-1416.97685198,0.00014795,2]
[394716879,1763913045496,-1500.0,0.00014795,2]
[394716881,1763913045506,-873.00267934,0.00014795,2]
[394716882,1763913045515,-1500.0,0.00014795,2]
[394716885,1763913045525,-1504.47653299,0.00014795,2]
[394716887,1763913045535,-1500.0,0.00014795,2]
[394716889,1763913045547,-1500.0,0.00014795,2]
[394716891,1763913045556,-1500.0,0.00014795,2]
[394716893,1763913045566,-173.58118336,0.00014795,2]
[394716895,1763913045576,-1500.0,0.00014795,2]
[394716897,1763913045587,-1500.0,0.00014795,2]
[394716899,1763913045597,-1004.49483482,0.00014795,2]
[394716900,1763913045607,-360.0,0.00014795,2]
[394716902,1763913045617,-815.18939611,0.00014811,2]
[394716905,1763913045627,-591.69972396,0.000149,2]
[394716906,1763913045637,-2000.0,0.000149,2]
[394716908,1763913045647,-260.4103811,0.00014932,2]
[394716911,1763913045656,-2152.0,0.00014966,2]
[394716912,1763913045665,-989.0,0.00014966,2]
[394716914,1763913045674,-630.0,0.00014966,2]
[394716917,1763913045684,-414.0,0.00014966,2]
[394716919,1763913045695,-300.0,0.0001499,2]
[394716920,1763913045705,-154.35227453,0.00015,2]
[394716923,1763913045714,-1013.3186696,0.00015,2]
[394716924,1763913045725,-23407.031151,0.00015,2]
[394716927,1763913045735,-500.0,0.00015002,2]
[394716928,1763913045744,-500.0,0.00015017,2]
[394716930,1763913045754,-161.45078453,0.00015027,2]
[394716932,1763913045764,-200.0,0.00015027,2]
[394716934,1763913045773,-100000.0,0.00015028,2]
[394716936,1763913045783,-169.57469,0.00015055,2]
[394716939,1763913045793,-180.88216335,0.00015068,2]
[394716941,1763913045802,-500.0,0.00015068,2]
[394716942,1763913045812,-374.878057,0.00015068,2]
[394716944,1763913045822,-800.0,0.00015068,2]
[394716946,1763913045833,-20330.00503909,0.0001512,2]
[394716948,1763913045842,-150.0,0.00015329,2]
[394716950,1763913045851,-150.0,0.00015329,2]
[394716952,1763913045861,-787.0,0.00015342,2]
[394716954,1763913045873,-460.0,0.00015342,2]
[394716956,1763913045883,-500.0,0.00015342,2]
[394716958,1763913045892,-2000.0,0.00015342,2]
[394716960,1763913045902,-2000.0,0.00015342,2]
[394716962,1763913045911,-2000.0,0.00015342,2]
[394716964,1763913045921,-597.7653527,0.00015342,2]
[394716966,1763913045932,-2000.0,0.00015342,2]
[394716969,1763913045944,-1498.3212111,0.00015342,2]
[394716971,1763913045955,-2000.0,0.00015342,2]
[394716973,1763913045964,-2000.0,0.00015342,2]
[394716975,1763913045975,-2000.0,0.00015342,2]
[394716977,1763913045984,-591.86394182,0.00015342,2]
[394716978,1763913045993,-1504.6568069,0.00015342,2]